[Event "Early-Titled-Tuesday-Blitz-July-09-2024"]
[Site "Chess.com"]
[Date "2024.07.09"]
[Round "5"]
[White "yesilikeorangejuice"]
[Black "anderson2361"]
[Result "0-1"]
[WhiteElo "2522"]
[BlackElo "2208"]
[TimeControl "180+1"]
[EndTime "8:58:27 PDT"]
[Termination "anderson2361 won by resignation"]

1. e4 {[%clk 0:03:00.9]} 1... c5 {[%clk 0:02:56.4]} 2. c3 {[%clk 0:02:58.9]}
2... Nf6 {[%clk 0:02:53]} 3. e5 {[%clk 0:02:58.5]} 3... Nd5 {[%clk 0:02:53.1]}
4. Nf3 {[%clk 0:02:59]} 4... Nc6 {[%clk 0:02:52]} 5. d4 {[%clk 0:02:59.1]} 5...
cxd4 {[%clk 0:02:51.5]} 6. cxd4 {[%clk 0:03:00]} 6... d6 {[%clk 0:02:51.2]} 7.
Bc4 {[%clk 0:03:00.2]} 7... Nb6 {[%clk 0:02:37.6]} 8. Bb5 {[%clk 0:02:59.6]}
8... Bd7 {[%clk 0:02:38.2]} 9. exd6 {[%clk 0:02:56]} 9... e6 {[%clk 0:02:37.7]}
10. O-O {[%clk 0:02:56.2]} 10... Bxd6 {[%clk 0:02:37.2]} 11. Nc3 {[%clk
0:02:56.8]} 11... O-O {[%clk 0:02:36.8]} 12. Re1 {[%clk 0:02:47.7]} 12... Ne7
{[%clk 0:02:29.9]} 13. Bd3 {[%clk 0:02:46.5]} 13... Ng6 {[%clk 0:02:24.6]} 14.
Bg5 {[%clk 0:02:33.8]} 14... Be7 {[%clk 0:01:58.4]} 15. Bxe7 {[%clk 0:02:25.7]}
15... Qxe7 {[%clk 0:01:54.7]} 16. d5 {[%clk 0:02:25.5]} 16... Qf6 {[%clk
0:01:48]} 17. dxe6 {[%clk 0:02:17.9]} 17... Bxe6 {[%clk 0:01:46.7]} 18. Ne4
{[%clk 0:02:09.5]} 18... Qxb2 {[%clk 0:01:42.9]} 19. Nc5 {[%clk 0:02:07.2]}
19... Bg4 {[%clk 0:01:36.2]} 20. h3 {[%clk 0:02:01.2]} 20... Bxf3 {[%clk
0:01:24.7]} 21. Qxf3 {[%clk 0:02:02.1]} 21... Rae8 {[%clk 0:01:12.7]} 22. Reb1
{[%clk 0:01:55.7]} 22... Qd4 {[%clk 0:01:08.9]} 23. Nb3 {[%clk 0:01:52.2]} 23...
Qd7 {[%clk 0:01:03.7]} 24. Nc5 {[%clk 0:01:47.5]} 24... Qd4 {[%clk 0:01:02.9]}
25. Nb3 {[%clk 0:01:39]} 25... Qd7 {[%clk 0:00:59.3]} 26. Bf5 {[%clk 0:01:31.1]}
26... Qd6 {[%clk 0:00:54.8]} 27. Qxb7 {[%clk 0:01:29.4]} 27... Re7 {[%clk
0:00:54.1]} 28. Qf3 {[%clk 0:01:28.2]} 28... Ne5 {[%clk 0:00:51.2]} 29. Qg3
{[%clk 0:01:21.7]} 29... g6 {[%clk 0:00:50.7]} 30. Bc2 {[%clk 0:01:19.1]} 30...
Rc8 {[%clk 0:00:46.2]} 31. Rd1 {[%clk 0:01:17.9]} 31... Qf6 {[%clk 0:00:44.9]}
32. Be4 {[%clk 0:01:14.6]} 32... Nbc4 {[%clk 0:00:36.9]} 33. Rac1 {[%clk
0:01:11.7]} 33... Rcc7 {[%clk 0:00:34.8]} 34. Bd5 {[%clk 0:01:04.6]} 34... Nb2
{[%clk 0:00:33.7]} 35. Rxc7 {[%clk 0:00:59.9]} 35... Rxc7 {[%clk 0:00:34.6]} 36.
Re1 {[%clk 0:01:00.2]} 36... Nbd3 {[%clk 0:00:34.2]} 37. Rd1 {[%clk 0:00:57.8]}
37... a5 {[%clk 0:00:34]} 38. Rxd3 {[%clk 0:00:57.1]} 38... a4 {[%clk
0:00:23.1]} 39. Nd2 {[%clk 0:00:52.5]} 39... Nxd3 {[%clk 0:00:21.6]} 40. Qxd3
{[%clk 0:00:52.1]} 40... Rd7 {[%clk 0:00:18.6]} 41. Ne4 {[%clk 0:00:34.3]} 41...
Qa1+ {[%clk 0:00:17.8]} 42. Kh2 {[%clk 0:00:33.1]} 42... Qe5+ {[%clk 0:00:18.1]}
43. g3 {[%clk 0:00:33.8]} 43... Kg7 {[%clk 0:00:15]} 44. Nc3 {[%clk 0:00:30.1]}
44... a3 {[%clk 0:00:13.1]} 45. Qf3 {[%clk 0:00:29.9]} 45... Rc7 {[%clk
0:00:11.4]} 46. Ne2 {[%clk 0:00:23]} 46... f5 {[%clk 0:00:09.2]} 47. Nf4 {[%clk
0:00:22.3]} 47... Rc2 {[%clk 0:00:09.4]} 48. Bb3 {[%clk 0:00:21.6]} 48... Rb2
{[%clk 0:00:08.2]} 49. Nd3 {[%clk 0:00:20.5]} 49... Qc3 {[%clk 0:00:07.3]} 50.
Nf4 {[%clk 0:00:16.8]} 50... Qxf3 {[%clk 0:00:06.2]} 0-1

[Event "Early-Titled-Tuesday-Blitz-July-09-2024"]
[Site "Chess.com"]
[Date "2024.07.09"]
[Round "5"]
[White "Prizant_academy"]
[Black "Evan_Attaker"]
[Result "1-0"]
[WhiteElo "3020"]
[BlackElo "2741"]
[TimeControl "180+1"]
[EndTime "8:58:28 PDT"]
[Termination "Prizant_academy won by checkmate"]

1. d4 {[%clk 0:03:00.9]} 1... c5 {[%clk 0:02:59.1]} 2. d5 {[%clk 0:03:01]} 2...
d6 {[%clk 0:02:58.9]} 3. e4 {[%clk 0:02:58.4]} 3... g6 {[%clk 0:02:57.7]} 4. Nc3
{[%clk 0:02:40.7]} 4... Bg7 {[%clk 0:02:56.9]} 5. h3 {[%clk 0:02:41]} 5... Nf6
{[%clk 0:02:56.1]} 6. Nf3 {[%clk 0:02:40]} 6... O-O {[%clk 0:02:55.4]} 7. Bd3
{[%clk 0:02:40.6]} 7... Na6 {[%clk 0:02:55.1]} 8. O-O {[%clk 0:02:38.1]} 8...
Nc7 {[%clk 0:02:54.2]} 9. a4 {[%clk 0:02:38]} 9... a6 {[%clk 0:02:52.8]} 10. Bf4
{[%clk 0:02:35.6]} 10... Bd7 {[%clk 0:02:52.1]} 11. a5 {[%clk 0:02:27.8]} 11...
Nb5 {[%clk 0:02:51.2]} 12. Na4 {[%clk 0:02:18.3]} 12... c4 {[%clk 0:02:45.4]}
13. Bxc4 {[%clk 0:02:15.4]} 13... Nxe4 {[%clk 0:02:45.6]} 14. Re1 {[%clk
0:01:54.2]} 14... Rc8 {[%clk 0:01:44.2]} 15. Rxe4 {[%clk 0:01:47.7]} 15... f5
{[%clk 0:01:44]} 16. Re1 {[%clk 0:01:36.3]} 16... Rxc4 {[%clk 0:01:41.2]} 17.
Bg5 {[%clk 0:01:37]} 17... Re8 {[%clk 0:01:28.2]} 18. c3 {[%clk 0:01:32.1]}
18... Qxa5 {[%clk 0:01:16.2]} 19. Be3 {[%clk 0:00:56]} 19... Qd8 {[%clk
0:01:01]} 20. Nb6 {[%clk 0:00:52.1]} 20... Re4 {[%clk 0:00:56.8]} 21. Qd3 {[%clk
0:00:43.6]} 21... Bf6 {[%clk 0:00:43.1]} 22. c4 {[%clk 0:00:37.2]} 22... Nc7
{[%clk 0:00:31]} 23. Bd4 {[%clk 0:00:36.3]} 23... Bxd4 {[%clk 0:00:26.8]} 24.
Nxd4 {[%clk 0:00:34.5]} 24... Nb5 {[%clk 0:00:18.8]} 25. Rxe4 {[%clk 0:00:22.2]}
25... fxe4 {[%clk 0:00:18.4]} 26. Qxe4 {[%clk 0:00:23.1]} 26... Qxb6 {[%clk
0:00:18.7]} 27. cxb5 {[%clk 0:00:23.5]} 27... axb5 {[%clk 0:00:19.1]} 28. Rc1
{[%clk 0:00:15.2]} 28... b4 {[%clk 0:00:17.3]} 29. h4 {[%clk 0:00:14.4]} 29...
b3 {[%clk 0:00:15.4]} 30. h5 {[%clk 0:00:14.7]} 30... Kg7 {[%clk 0:00:15.5]} 31.
hxg6 {[%clk 0:00:10.5]} 31... hxg6 {[%clk 0:00:15.8]} 32. Rc3 {[%clk 0:00:11.1]}
32... Qa5 {[%clk 0:00:14.6]} 33. Nxb3 {[%clk 0:00:03.6]} 33... Qa2 {[%clk
0:00:14.1]} 34. Rg3 {[%clk 0:00:03.3]} 34... Rh8 {[%clk 0:00:01.6]} 35. Qxg6+
{[%clk 0:00:03.5]} 35... Kf8 {[%clk 0:00:01.8]} 36. Qg7+ {[%clk 0:00:04.4]}
36... Ke8 {[%clk 0:00:02.6]} 37. Qxh8+ {[%clk 0:00:05.3]} 37... Kf7 {[%clk
0:00:03.5]} 38. Qg7+ {[%clk 0:00:06.2]} 38... Ke8 {[%clk 0:00:03.7]} 39. Qg8#
{[%clk 0:00:07.1]} 1-0

[Event "Early-Titled-Tuesday-Blitz-July-09-2024"]
[Site "Chess.com"]
[Date "2024.07.09"]
[Round "5"]
[White "PapaieDudu"]
[Black "carloseduar100"]
[Result "1/2-1/2"]
[WhiteElo "2401"]
[BlackElo "2255"]
[TimeControl "180+1"]
[EndTime "8:58:28 PDT"]
[Termination "Game drawn - insufficient material"]

1. e4 {[%clk 0:02:59.7]} 1... e6 {[%clk 0:02:59.7]} 2. Nf3 {[%clk 0:02:58.8]}
2... d5 {[%clk 0:03:00.6]} 3. e5 {[%clk 0:02:59]} 3... c5 {[%clk 0:03:00.2]} 4.
c4 {[%clk 0:02:54.5]} 4... d4 {[%clk 0:02:56.3]} 5. d3 {[%clk 0:02:54.1]} 5...
Nc6 {[%clk 0:02:56.9]} 6. Bf4 {[%clk 0:02:54.6]} 6... g6 {[%clk 0:02:57.1]} 7.
Qe2 {[%clk 0:02:52.4]} 7... Bg7 {[%clk 0:02:57.4]} 8. g4 {[%clk 0:02:51.1]} 8...
Nge7 {[%clk 0:02:57.1]} 9. Bg2 {[%clk 0:02:51.2]} 9... b6 {[%clk 0:02:52.2]} 10.
Ng5 {[%clk 0:02:42.6]} 10... Bb7 {[%clk 0:02:47.7]} 11. Bg3 {[%clk 0:02:33]}
11... Qc7 {[%clk 0:02:27.9]} 12. O-O {[%clk 0:02:20]} 12... h5 {[%clk
0:02:18.6]} 13. h3 {[%clk 0:02:15.8]} 13... hxg4 {[%clk 0:02:18.2]} 14. hxg4
{[%clk 0:02:16.3]} 14... Nxe5 {[%clk 0:02:09.5]} 15. Bxb7 {[%clk 0:02:08]} 15...
Qxb7 {[%clk 0:02:08.4]} 16. Ne4 {[%clk 0:02:07.3]} 16... O-O-O {[%clk
0:01:54.4]} 17. Nbd2 {[%clk 0:02:02.3]} 17... f5 {[%clk 0:01:53.5]} 18. f4
{[%clk 0:01:58.8]} 18... Nxg4 {[%clk 0:01:38]} 19. b4 {[%clk 0:01:47.6]} 19...
Rh3 {[%clk 0:01:34.3]} 20. Kg2 {[%clk 0:01:42]} 20... Rdh8 {[%clk 0:01:33.2]}
21. Rh1 {[%clk 0:01:42.5]} 21... Ne3+ {[%clk 0:01:29.3]} 22. Kf2 {[%clk
0:01:28.7]} 22... Rxh1 {[%clk 0:01:13.7]} 23. Rxh1 {[%clk 0:01:27.1]} 23... Rxh1
{[%clk 0:01:14.6]} 24. Nd6+ {[%clk 0:01:25.7]} 24... Kc7 {[%clk 0:01:06.2]} 25.
Nxb7 {[%clk 0:01:26.3]} 25... Kxb7 {[%clk 0:01:04.9]} 26. Qf3+ {[%clk
0:01:25.9]} 26... Ka6 {[%clk 0:00:54.5]} 27. Qxh1 {[%clk 0:01:24.1]} 27... cxb4
{[%clk 0:00:54.9]} 28. a3 {[%clk 0:01:21.7]} 28... bxa3 {[%clk 0:00:55]} 29. Qa1
{[%clk 0:01:20.2]} 29... Nc6 {[%clk 0:00:45.3]} 30. Qxa3+ {[%clk 0:01:20.6]}
30... Kb7 {[%clk 0:00:45.9]} 31. Nf3 {[%clk 0:01:18.3]} 31... Ng4+ {[%clk
0:00:36.6]} 32. Kg1 {[%clk 0:01:17.2]} 32... a5 {[%clk 0:00:33.3]} 33. Ng5
{[%clk 0:01:17.5]} 33... e5 {[%clk 0:00:31.3]} 34. Qd6 {[%clk 0:01:15.8]} 34...
exf4 {[%clk 0:00:28]} 35. Bxf4 {[%clk 0:01:13.1]} 35... Be5 {[%clk 0:00:22.6]}
36. Bxe5 {[%clk 0:01:12.9]} 36... Ngxe5 {[%clk 0:00:22.4]} 37. Ne6 {[%clk
0:01:12.8]} 37... Ka6 {[%clk 0:00:18]} 38. Nc7+ {[%clk 0:01:11.6]} 38... Kb7
{[%clk 0:00:18.3]} 39. Nb5 {[%clk 0:01:12.5]} 39... a4 {[%clk 0:00:16]} 40. Qc7+
{[%clk 0:01:12.8]} 40... Ka6 {[%clk 0:00:16.2]} 41. Qc8+ {[%clk 0:01:07.9]}
41... Ka5 {[%clk 0:00:16.4]} 42. Qa8+ {[%clk 0:01:08.3]} 42... Kb4 {[%clk
0:00:16.6]} 43. Na7 {[%clk 0:01:06.6]} 43... Nxa7 {[%clk 0:00:14.6]} 44. Qxa7
{[%clk 0:01:07.2]} 44... Nxd3 {[%clk 0:00:15.4]} 45. Qxb6+ {[%clk 0:01:06.6]}
45... Kxc4 {[%clk 0:00:16]} 46. Qa6+ {[%clk 0:01:06.9]} 46... Kc3 {[%clk
0:00:14.7]} 47. Qxa4 {[%clk 0:01:06.7]} 47... Nb2 {[%clk 0:00:11.2]} 48. Qc6+
{[%clk 0:01:05.9]} 48... Nc4 {[%clk 0:00:08.9]} 49. Kf2 {[%clk 0:01:04.6]} 49...
d3 {[%clk 0:00:09.1]} 50. Ke1 {[%clk 0:01:04.9]} 50... d2+ {[%clk 0:00:08.1]}
51. Ke2 {[%clk 0:01:05.2]} 51... g5 {[%clk 0:00:05.2]} 52. Qc5 {[%clk
0:01:00.9]} 52... f4 {[%clk 0:00:05.1]} 53. Qxg5 {[%clk 0:00:59.7]} 53... f3+
{[%clk 0:00:04.8]} 54. Kf2 {[%clk 0:00:41.9]} 54... d1=Q {[%clk 0:00:05]} 55.
Qf6+ {[%clk 0:00:41.5]} 55... Kc2 {[%clk 0:00:04.6]} 56. Qxf3 {[%clk 0:00:40]}
56... Qxf3+ {[%clk 0:00:02.9]} 57. Kxf3 {[%clk 0:00:40.2]} 1/2-1/2

[Event "Early-Titled-Tuesday-Blitz-July-09-2024"]
[Site "Chess.com"]
[Date "2024.07.09"]
[Round "5"]
[White "BogdanDeac"]
[Black "dretch"]
[Result "0-1"]
[WhiteElo "3006"]
[BlackElo "2889"]
[TimeControl "180+1"]
[EndTime "8:58:29 PDT"]
[Termination "dretch won on time"]

1. d4 {[%clk 0:03:00.9]} 1... d5 {[%clk 0:03:00]} 2. Nf3 {[%clk 0:03:01.4]} 2...
Nf6 {[%clk 0:03:00.2]} 3. Bf4 {[%clk 0:03:02]} 3... c5 {[%clk 0:02:59.5]} 4. e3
{[%clk 0:03:02.5]} 4... Nc6 {[%clk 0:02:59.5]} 5. Nbd2 {[%clk 0:03:03.1]} 5...
e6 {[%clk 0:02:56.5]} 6. Bb5 {[%clk 0:02:59.7]} 6... Bd7 {[%clk 0:02:52]} 7. c3
{[%clk 0:02:44.2]} 7... Be7 {[%clk 0:02:47.6]} 8. Bxc6 {[%clk 0:02:40.1]} 8...
Bxc6 {[%clk 0:02:45.6]} 9. Ne5 {[%clk 0:02:40.6]} 9... O-O {[%clk 0:02:38.9]}
10. Nxc6 {[%clk 0:02:39.1]} 10... bxc6 {[%clk 0:02:38.8]} 11. O-O {[%clk
0:02:22.6]} 11... Qb6 {[%clk 0:02:27.9]} 12. Qb3 {[%clk 0:02:20.7]} 12... Rfc8
{[%clk 0:02:21.5]} 13. dxc5 {[%clk 0:02:14.2]} 13... Bxc5 {[%clk 0:02:18]} 14.
Rfc1 {[%clk 0:02:13.8]} 14... h6 {[%clk 0:02:09.3]} 15. c4 {[%clk 0:02:09.3]}
15... Bb4 {[%clk 0:01:58.7]} 16. Nf3 {[%clk 0:02:04.5]} 16... Ne4 {[%clk
0:01:55.2]} 17. Ne5 {[%clk 0:01:32.6]} 17... Nf6 {[%clk 0:00:18.7]} 18. cxd5
{[%clk 0:01:03.6]} 18... cxd5 {[%clk 0:00:17.7]} 19. a3 {[%clk 0:01:01.8]} 19...
Be7 {[%clk 0:00:12.8]} 20. Qxb6 {[%clk 0:00:43.3]} 20... axb6 {[%clk 0:00:13.5]}
21. Nc6 {[%clk 0:00:43.6]} 21... Bc5 {[%clk 0:00:11.8]} 22. Nd4 {[%clk
0:00:43.5]} 22... Bxd4 {[%clk 0:00:08.5]} 23. exd4 {[%clk 0:00:43.2]} 23... Nd7
{[%clk 0:00:08.2]} 24. f3 {[%clk 0:00:19.4]} 24... f6 {[%clk 0:00:08.4]} 25. Bd6
{[%clk 0:00:12.3]} 25... Kf7 {[%clk 0:00:08.6]} 26. Rxc8 {[%clk 0:00:11.8]}
26... Rxc8 {[%clk 0:00:08.4]} 27. a4 {[%clk 0:00:12.4]} 27... Rc4 {[%clk
0:00:07.2]} 28. b4 {[%clk 0:00:12.3]} 28... Rc6 {[%clk 0:00:05.1]} 29. Bg3
{[%clk 0:00:11.2]} 29... e5 {[%clk 0:00:04.7]} 30. dxe5 {[%clk 0:00:11.1]} 30...
fxe5 {[%clk 0:00:05.6]} 31. a5 {[%clk 0:00:10.8]} 31... bxa5 {[%clk 0:00:05.9]}
32. bxa5 {[%clk 0:00:11.7]} 32... Ra6 {[%clk 0:00:05.8]} 33. Be1 {[%clk
0:00:11.4]} 33... Ke6 {[%clk 0:00:06.1]} 34. Kf1 {[%clk 0:00:11.3]} 34... Nb8
{[%clk 0:00:06.4]} 35. Rb1 {[%clk 0:00:09.3]} 35... Nc6 {[%clk 0:00:07.3]} 36.
Rb5 {[%clk 0:00:09.4]} 36... Nd4 {[%clk 0:00:06.9]} 37. Rb6+ {[%clk 0:00:04.9]}
37... Rxb6 {[%clk 0:00:07]} 38. axb6 {[%clk 0:00:05.5]} 38... Kd7 {[%clk
0:00:06.8]} 39. Bc3 {[%clk 0:00:03.8]} 39... Nc6 {[%clk 0:00:07.1]} 40. f4
{[%clk 0:00:03.6]} 40... d4 {[%clk 0:00:07.2]} 41. Bd2 {[%clk 0:00:03.1]} 41...
e4 {[%clk 0:00:07.6]} 42. f5 {[%clk 0:00:02.9]} 42... h5 {[%clk 0:00:06.3]} 43.
Bf4 {[%clk 0:00:02.2]} 43... Kc8 {[%clk 0:00:06.2]} 44. Bc7 {[%clk 0:00:01.3]}
44... Ne7 {[%clk 0:00:05.7]} 0-1

[Event "Early-Titled-Tuesday-Blitz-July-09-2024"]
[Site "Chess.com"]
[Date "2024.07.09"]
[Round "5"]
[White "mwpchess"]
[Black "Chessbard1972"]
[Result "1/2-1/2"]
[WhiteElo "2754"]
[BlackElo "2232"]
[TimeControl "180+1"]
[EndTime "8:58:30 PDT"]
[Termination "Game drawn - insufficient material"]

1. e4 {[%clk 0:03:00.9]} 1... c5 {[%clk 0:02:58.5]} 2. Be2 {[%clk 0:03:00.6]}
2... a6 {[%clk 0:02:55.3]} 3. f4 {[%clk 0:03:00.3]} 3... e6 {[%clk 0:02:54]} 4.
Nf3 {[%clk 0:03:00.2]} 4... b5 {[%clk 0:02:53.3]} 5. c3 {[%clk 0:02:55.6]} 5...
Bb7 {[%clk 0:02:52.8]} 6. d3 {[%clk 0:02:55.2]} 6... d5 {[%clk 0:02:52.3]} 7. e5
{[%clk 0:02:51.5]} 7... h5 {[%clk 0:02:50.7]} 8. d4 {[%clk 0:02:51.2]} 8... Nh6
{[%clk 0:02:49.4]} 9. Be3 {[%clk 0:02:50.6]} 9... Nf5 {[%clk 0:02:48]} 10. Bf2
{[%clk 0:02:50.3]} 10... Qb6 {[%clk 0:02:46.3]} 11. g3 {[%clk 0:02:39.6]} 11...
Nc6 {[%clk 0:02:45.2]} 12. O-O {[%clk 0:02:34.5]} 12... Rc8 {[%clk 0:02:42.8]}
13. Bd3 {[%clk 0:02:20.7]} 13... g6 {[%clk 0:02:41.5]} 14. Bxf5 {[%clk
0:02:12.3]} 14... gxf5 {[%clk 0:02:41.3]} 15. Nbd2 {[%clk 0:02:07.2]} 15... Be7
{[%clk 0:02:35.5]} 16. dxc5 {[%clk 0:01:54.9]} 16... Bxc5 {[%clk 0:02:33.9]} 17.
Nb3 {[%clk 0:01:54]} 17... Bxf2+ {[%clk 0:02:33.2]} 18. Rxf2 {[%clk 0:01:54.9]}
18... h4 {[%clk 0:02:16.3]} 19. Nbd4 {[%clk 0:01:52.6]} 19... hxg3 {[%clk
0:02:14.4]} 20. hxg3 {[%clk 0:01:53.5]} 20... Nxd4 {[%clk 0:02:11.9]} 21. Qxd4
{[%clk 0:01:52]} 21... Qxd4 {[%clk 0:02:07.5]} 22. Nxd4 {[%clk 0:01:51.2]} 22...
b4 {[%clk 0:01:56.5]} 23. Rc2 {[%clk 0:01:43.5]} 23... Rc4 {[%clk 0:01:39.4]}
24. b3 {[%clk 0:01:40.6]} 24... Rxc3 {[%clk 0:01:37.4]} 25. Rxc3 {[%clk
0:01:40.7]} 25... bxc3 {[%clk 0:01:37.7]} 26. Rc1 {[%clk 0:01:40.9]} 26... Kd7
{[%clk 0:01:35]} 27. Rxc3 {[%clk 0:01:40.7]} 27... Rc8 {[%clk 0:01:29.8]} 28.
Rxc8 {[%clk 0:01:40]} 28... Bxc8 {[%clk 0:01:29.8]} 29. b4 {[%clk 0:01:39.5]}
29... Kc7 {[%clk 0:01:27.9]} 30. a3 {[%clk 0:01:38.2]} 30... Bd7 {[%clk
0:01:27.7]} 31. Kh2 {[%clk 0:01:37]} 31... Kd8 {[%clk 0:01:20.6]} 32. Kg2 {[%clk
0:01:25.1]} 32... Ke7 {[%clk 0:01:20.4]} 33. Kf2 {[%clk 0:01:25.2]} 33... f6
{[%clk 0:01:20.6]} 34. Nf3 {[%clk 0:01:23.1]} 34... fxe5 {[%clk 0:01:12.5]} 35.
Nxe5 {[%clk 0:01:22.3]} 35... Be8 {[%clk 0:01:11.3]} 36. Ke3 {[%clk 0:01:22]}
36... Kd6 {[%clk 0:01:10.8]} 37. Kd4 {[%clk 0:01:22]} 37... Ba4 {[%clk
0:01:07.5]} 38. Nd3 {[%clk 0:01:19.3]} 38... Be8 {[%clk 0:01:05.9]} 39. Nc5
{[%clk 0:01:17.2]} 39... Bb5 {[%clk 0:01:01.4]} 40. a4 {[%clk 0:01:16.5]} 40...
Bf1 {[%clk 0:01:01.3]} 41. Nb3 {[%clk 0:01:03.5]} 41... Be2 {[%clk 0:00:58.1]}
42. Na1 {[%clk 0:00:54.9]} 42... Bd1 {[%clk 0:00:56.6]} 43. a5 {[%clk
0:00:45.9]} 43... Kc6 {[%clk 0:00:55.3]} 44. Kc3 {[%clk 0:00:41]} 44... Kb5
{[%clk 0:00:52.3]} 45. Kd2 {[%clk 0:00:41.1]} 45... Ba4 {[%clk 0:00:47.1]} 46.
Kc3 {[%clk 0:00:41.2]} 46... d4+ {[%clk 0:00:45.1]} 47. Kxd4 {[%clk 0:00:41.2]}
47... Kxb4 {[%clk 0:00:45.5]} 48. Ke5 {[%clk 0:00:41.2]} 48... Kxa5 {[%clk
0:00:41.4]} 49. Kxe6 {[%clk 0:00:39.2]} 49... Kb4 {[%clk 0:00:39.5]} 50. Kxf5
{[%clk 0:00:39.4]} 50... Bd7+ {[%clk 0:00:34.5]} 51. Ke5 {[%clk 0:00:35.9]}
51... Kc3 {[%clk 0:00:34.6]} 52. f5 {[%clk 0:00:35.2]} 52... Kb2 {[%clk
0:00:33.5]} 53. g4 {[%clk 0:00:35.1]} 53... a5 {[%clk 0:00:32.8]} 54. g5 {[%clk
0:00:33.8]} 54... Kxa1 {[%clk 0:00:27]} 55. f6 {[%clk 0:00:23.6]} 55... Be8
{[%clk 0:00:26.4]} 56. Ke6 {[%clk 0:00:23.8]} 56... a4 {[%clk 0:00:23.4]} 57. f7
{[%clk 0:00:24.1]} 57... Bxf7+ {[%clk 0:00:23.8]} 58. Kxf7 {[%clk 0:00:25]}
58... a3 {[%clk 0:00:23.7]} 59. g6 {[%clk 0:00:25.4]} 59... a2 {[%clk 0:00:24]}
60. g7 {[%clk 0:00:25.8]} 60... Kb1 {[%clk 0:00:23]} 61. g8=Q {[%clk 0:00:25.8]}
61... a1=Q {[%clk 0:00:23.3]} 62. Qg6+ {[%clk 0:00:25.8]} 62... Ka2 {[%clk
0:00:22.9]} 63. Qa6+ {[%clk 0:00:25.4]} 63... Kb1 {[%clk 0:00:23]} 64. Qxa1+
{[%clk 0:00:25.2]} 64... Kxa1 {[%clk 0:00:23.3]} 1/2-1/2

[Event "Early-Titled-Tuesday-Blitz-July-09-2024"]
[Site "Chess.com"]
[Date "2024.07.09"]
[Round "5"]
[White "nicolochessit"]
[Black "zverr1"]
[Result "1-0"]
[WhiteElo "2389"]
[BlackElo "2545"]
[TimeControl "180+1"]
[EndTime "8:58:32 PDT"]
[Termination "nicolochessit won by checkmate"]

1. d4 {[%clk 0:03:00]} 1... Nf6 {[%clk 0:03:00]} 2. Nc3 {[%clk 0:02:59.3]} 2...
d5 {[%clk 0:02:59.9]} 3. Bg5 {[%clk 0:02:59]} 3... a6 {[%clk 0:02:54.4]} 4. e3
{[%clk 0:02:55.8]} 4... b5 {[%clk 0:02:52.5]} 5. f4 {[%clk 0:02:55.6]} 5... Bb7
{[%clk 0:02:46.6]} 6. Nf3 {[%clk 0:02:55]} 6... e6 {[%clk 0:02:45.4]} 7. Bd3
{[%clk 0:02:54.4]} 7... c5 {[%clk 0:02:39.3]} 8. O-O {[%clk 0:02:53.8]} 8... Nc6
{[%clk 0:02:35.3]} 9. Ne5 {[%clk 0:02:53.1]} 9... cxd4 {[%clk 0:02:23.4]} 10.
Nxc6 {[%clk 0:02:51.1]} 10... Bxc6 {[%clk 0:02:23.4]} 11. exd4 {[%clk
0:02:51.5]} 11... Qb6 {[%clk 0:02:23.9]} 12. Kh1 {[%clk 0:02:45.7]} 12... Be7
{[%clk 0:02:00.6]} 13. f5 {[%clk 0:02:40.8]} 13... Bd7 {[%clk 0:01:45.8]} 14. a4
{[%clk 0:02:10.1]} 14... Qxd4 {[%clk 0:01:19.1]} 15. fxe6 {[%clk 0:02:07]} 15...
Bc6 {[%clk 0:00:53]} 16. axb5 {[%clk 0:01:57.4]} 16... Bb7 {[%clk 0:00:36.8]}
17. bxa6 {[%clk 0:01:43.3]} 17... Bc6 {[%clk 0:00:36.9]} 18. exf7+ {[%clk
0:01:43]} 18... Kf8 {[%clk 0:00:34.2]} 19. Bb5 {[%clk 0:01:29.4]} 19... Qc5
{[%clk 0:00:26.8]} 20. Bxc6 {[%clk 0:01:22.7]} 20... Qxc6 {[%clk 0:00:27.7]} 21.
Bxf6 {[%clk 0:01:22.2]} 21... gxf6 {[%clk 0:00:17.6]} 22. Qxd5 {[%clk
0:01:20.6]} 22... Rxa6 {[%clk 0:00:15.4]} 23. Qxc6 {[%clk 0:01:00.5]} 23... Rxc6
{[%clk 0:00:16.3]} 24. Ra8+ {[%clk 0:01:00.3]} 24... Kg7 {[%clk 0:00:17]} 25.
Rxh8 {[%clk 0:01:00.4]} 25... Kxh8 {[%clk 0:00:17.9]} 26. Nd5 {[%clk 0:01:00.1]}
26... Bf8 {[%clk 0:00:17.7]} 27. Nxf6 {[%clk 0:00:55.4]} 27... Rxc2 {[%clk
0:00:11.7]} 28. Nd7 {[%clk 0:00:25]} 28... Kg7 {[%clk 0:00:11.5]} 29. b4 {[%clk
0:00:24.8]} 29... Rb2 {[%clk 0:00:11.2]} 30. Nc5 {[%clk 0:00:24.1]} 30... Bxc5
{[%clk 0:00:03.7]} 31. bxc5 {[%clk 0:00:22]} 31... Kf8 {[%clk 0:00:04.5]} 32.
Rc1 {[%clk 0:00:12.3]} 32... Kxf7 {[%clk 0:00:01.7]} 33. c6 {[%clk 0:00:11.4]}
33... Rb8 {[%clk 0:00:02.4]} 34. g4 {[%clk 0:00:10]} 34... Ke6 {[%clk
0:00:02.4]} 35. Kg2 {[%clk 0:00:09.4]} 35... Kd6 {[%clk 0:00:02.6]} 36. c7
{[%clk 0:00:09.9]} 36... Rc8 {[%clk 0:00:02.7]} 37. Kg3 {[%clk 0:00:10.5]} 37...
Rxc7 {[%clk 0:00:03.1]} 38. Rxc7 {[%clk 0:00:09.8]} 38... Kxc7 {[%clk 0:00:04]}
39. Kf4 {[%clk 0:00:10.3]} 39... Kd7 {[%clk 0:00:04.6]} 40. Kg5 {[%clk
0:00:10.5]} 40... Ke7 {[%clk 0:00:03.3]} 41. Kh6 {[%clk 0:00:11.1]} 41... Kf6
{[%clk 0:00:03.5]} 42. h4 {[%clk 0:00:10.9]} 42... Kf7 {[%clk 0:00:03.4]} 43.
Kxh7 {[%clk 0:00:11.5]} 43... Kf6 {[%clk 0:00:04.1]} 44. g5+ {[%clk 0:00:12.1]}
44... Kf7 {[%clk 0:00:05]} 45. g6+ {[%clk 0:00:12.4]} 45... Kf6 {[%clk
0:00:05.6]} 46. g7 {[%clk 0:00:13]} 46... Kf5 {[%clk 0:00:06.5]} 47. g8=Q {[%clk
0:00:13.9]} 47... Kf6 {[%clk 0:00:06.9]} 48. Qg5+ {[%clk 0:00:14.3]} 48... Ke6
{[%clk 0:00:07.2]} 49. Kg6 {[%clk 0:00:14.3]} 49... Kd6 {[%clk 0:00:07.9]} 50.
h5 {[%clk 0:00:15.2]} 50... Ke6 {[%clk 0:00:08.4]} 51. h6 {[%clk 0:00:16.1]}
51... Kd6 {[%clk 0:00:09.3]} 52. h7 {[%clk 0:00:16.7]} 52... Ke6 {[%clk
0:00:10.2]} 53. h8=Q {[%clk 0:00:17]} 53... Kd7 {[%clk 0:00:11.1]} 54. Qhf6
{[%clk 0:00:17.5]} 54... Ke8 {[%clk 0:00:11.7]} 55. Qh5 {[%clk 0:00:18.4]} 55...
Kd7 {[%clk 0:00:11.3]} 56. Qh7+ {[%clk 0:00:19]} 56... Kc8 {[%clk 0:00:12.1]}
57. Qfh8# {[%clk 0:00:19.4]} 1-0